[Event "Netanya Open 2019"]
[Site "Netanya"]
[Date "2019.06.28"]
[Round "6.18"]
[White "Greenfeld, Alon"]
[Black "Aizenberg, Benny"]
[Result "1-0"]
[ECO "A39"]
[WhiteElo "2513"]
[BlackElo "2156"]
[Annotator "ChessBase"]
[PlyCount "65"]
[EventDate "2019.06.23"]
[EventType "swiss"]
[EventCountry "ISR"]
[SourceTitle "playchess.com"]
[Source "ChessBase"]
[SourceQuality "1"]
[TimeControl "40/5400+30:1800+30"]

1. d4 {[%emt 0:00:39]} Nf6 {[%emt 0:00:00]} 2. Nf3 {[%emt 0:00:38]} g6 {[%emt 0:00:00]} 3. g3 {[%emt 0:01:39]} Bg7 {[%emt 0:00:00]} 4. Bg2 {[%emt 0:00:08]} c5 {[%emt 0:00:31]} 5. O-O {[%emt 0:03:02]} cxd4 {[%emt 0:00:39]} 6. Nxd4 {[%emt 0:00:06]} O-O {[%emt 0:00:05]} 7. c4 {[%emt 0:00:39]} Nc6 {[%emt 0:01:05]} 8. Nc3 {[%emt 0:00:17]} Nxd4 {[%emt 0:01:09]} 9. Qxd4 {[%emt 0:01:35]} d6 {[%emt 0:00:04]} 10. Qd3 {[%emt 0:03:38]} Rb8 {[%emt 0:00:31]} 11. Bf4 {[%emt 0:13:17]} b6 {[%emt 0:10:36]} 12. Rac1 {[%emt 0:03:46]} Bb7 {[%emt 0:02:51]} 13. e4 {[%emt 0:00:58]} a6 {[%emt 0:02:10]} 14. Rfd1 {[%emt 0:05:08]} Nd7 {[%emt 0:01:25]} 15. Qd2 {[%emt 0:21:45]} b5 {[%emt 0:31:15]} 16. cxb5 {[%emt 0:01:13]} axb5 {[%emt 0:00:04]} 17. Nxb5 {[%emt 0:02:21]} Bxe4 {[%emt 0:05:38]} 18. Bxe4 {[%emt 0:00:12]} Rxb5 {[%emt 0:00:01]} 19. b4 {[%emt 0:01:19]} Qb8 {[%emt 0:07:40]} 20. Bc6 {[%emt 0:04:48]} Ne5 {[%emt 0:00:13]} 21. Bxe5 {[%emt 0:00:05]} Rxe5 {[%emt 0:00:04]} 22. a4 {[%emt 0:00:50]} Qc8 {[%emt 0:04:21]} 23. b5 {[%emt 0:03:35]} Qg4 {[%emt 0:01:26]} 24. a5 {[%emt 0:03:43]} Qh5 {[%emt 0:02:49]} 25. Qd3 {[%emt 0:03:10]} f5 {[%emt 0:05:27]} 26. Bf3 {[%emt 0:00:33]} Qh6 {[%emt 0:00:05]} 27. b6 {[%emt 0:01:39]} Rxa5 {[%emt 0:03:19]} 28. b7 {[%emt 0:01:54]} d5 {[%emt 0:00:45]} 29. Bxd5+ {[%emt 0:01:05]} Kh8 {[%emt 0:00:04]} 30. Rc8 {[%emt 0:00:22]} Be5 {[%emt 0:00:45]} 31. Qe3 {[%emt 0:01:05]} Qxe3 {[%emt 0:01:00]} 32. Rxf8+ {[%emt 0:00:06]} Kg7 {[%emt 0:00:02]} 33. Rf7+ {[%emt 0:01:08]} 1-0

[Event "Netanya Open 2019"]
[Site "Netanya"]
[Date "2019.06.28"]
[Round "6.19"]
[White "Prraneeth Vuppala"]
[Black "Zanan, Evgeny"]
[Result "0-1"]
[ECO "A62"]
[WhiteElo "2264"]
[BlackElo "2505"]
[Annotator "ChessBase"]
[PlyCount "104"]
[EventDate "2019.06.23"]
[EventType "swiss"]
[EventCountry "ISR"]
[SourceTitle "playchess.com"]
[Source "ChessBase"]
[SourceQuality "1"]
[TimeControl "40/5400+30:1800+30"]

1. d4 {[%emt 0:00:00]} Nf6 {[%emt 0:00:00]} 2. c4 {[%emt 0:00:00]} e6 {[%emt 0:00:00]} 3. g3 {[%emt 0:00:00]} c5 {[%emt 0:00:00]} 4. d5 {[%emt 0:00:00]} exd5 {[%emt 0:00:00]} 5. cxd5 {[%emt 0:00:00]} d6 {[%emt 0:00:02]} 6. Nc3 {[%emt 0:00:00]} g6 {[%emt 0:00:06]} 7. Bg2 {[%emt 0:00:00]} Bg7 {[%emt 0:00:04]} 8. Nf3 {[%emt 0:00:00]} O-O {[%emt 0:00:11]} 9. O-O {[%emt 0:00:02]} Re8 {[%emt 0:00:05]} 10. Bf4 {[%emt 0:00:10]} Bf5 {[%emt 0:00:05]} 11. Nh4 {[%emt 0:04:39]} Bg4 {[%emt 0:00:40]} 12. h3 {[%emt 0:00:40]} Nh5 {[%emt 0:00:06]} 13. hxg4 {[%emt 0:04:57]} Nxf4 {[%emt 0:00:07]} 14. gxf4 {[%emt 0:00:34]} Qxh4 {[%emt 0:00:04]} 15. e3 {[%emt 0:00:47]} Bxc3 {[%emt 0:00:05]} 16. bxc3 {[%emt 0:00:10]} Nd7 {[%emt 0:00:03]} 17. Bf3 {[%emt 0:06:40]} Qf6 {[%emt 0:02:39]} 18. c4 {[%emt 0:04:52]} g5 {[%emt 0:08:42]} 19. f5 {[%emt 0:41:47]} Ne5 {[%emt 0:16:49]} 20. Be2 {[%emt 0:00:02]} Kg7 {[%emt 0:13:05]} 21. Qc2 {[%emt 0:04:42]} Nd7 {[%emt 0:07:45]} 22. Rab1 {[%emt 0:06:57]} b6 {[%emt 0:01:02]} 23. Kg2 {[%emt 0:00:22]} Qe5 {[%emt 0:00:04]} 24. Rh1 {[%emt 0:08:15]} Nf6 {[%emt 0:00:29]} 25. Rh3 {[%emt 0:01:37]} h6 {[%emt 0:02:36]} 26. Qb2 {[%emt 0:11:25]} Qe4+ {[%emt 0:09:04]} 27. Bf3 {[%emt 0:00:13]} Qxc4 {[%emt 0:09:00]} 28. Rxh6 {[%emt 0:01:28]} Re5 {[%emt 0:00:05]} 29. Rbh1 {[%emt 0:01:06]} Rg8 {[%emt 0:01:59]} 30. e4 {[%emt 0:02:45]} Qd4 {[%emt 0:08:24]} 31. Qc1 {[%emt 0:00:35]} Nxe4 {[%emt 0:01:03]} 32. Bxe4 {[%emt 0:00:11]} Qxe4+ {[%emt 0:00:41]} 33. f3 {[%emt 0:00:56]} Qf4 {[%emt 0:07:33]} 34. Qxf4 {[%emt 0:00:29]} gxf4 {[%emt 0:00:01]} 35. Rxd6 {[%emt 0:00:37]} Re2+ {[%emt 0:00:26]} 36. Kg1 {[%emt 0:00:04]} Rxa2 {[%emt 0:06:42]} 37. Rh2 {[%emt 0:00:37]} Ra1+ {[%emt 0:01:56]} 38. Kg2 {[%emt 0:00:19]} Re8 {[%emt 0:00:08]} 39. g5 {[%emt 0:00:17]} Ra2+ {[%emt 0:00:09]} 40. Kh3 {[%emt 0:00:51]} Rh8+ {[%emt 0:01:31]} 41. Rh6 {[%emt 0:30:22]} Rxh2+ {[%emt 0:30:50]} 42. Kxh2 {[%emt 0:00:01]} Rd8 {[%emt 0:00:11]} 43. d6 {[%emt 0:01:16]} c4 {[%emt 0:04:22]} 44. Kh3 {[%emt 0:00:16]} c3 {[%emt 0:00:15]} 45. f6+ {[%emt 0:00:00]} Kg8 {[%emt 0:00:00]} 46. g6 {[%emt 0:00:00]} fxg6 {[%emt 0:00:00]} 47. Rxg6+ {[%emt 0:00:00]} Kf7 {[%emt 0:00:00]} 48. Rg7+ {[%emt 0:00:00]} Kxf6 {[%emt 0:00:00]} 49. Rc7 {[%emt 0:00:00]} Ke5 {[%emt 0:00:00]} 50. d7 {[%emt 0:00:00]} c2 {[%emt 0:00:00]} 51. Kg4 {[%emt 0:00:00]} Rxd7 {[%emt 0:00:00]} 52. Rxc2 {[%emt 0:00:00]} Rg7+ {[%emt 0:00:00]} 0-1

[Event "Netanya Open 2019"]
[Site "Netanya"]
[Date "2019.06.28"]
[Round "6.20"]
[White "Aroesti, Roee"]
[Black "Grinberg, Eyal"]
[Result "0-1"]
[ECO "B51"]
[WhiteElo "2233"]
[BlackElo "2474"]
[Annotator "ChessBase"]
[PlyCount "80"]
[EventDate "2019.06.23"]
[EventType "swiss"]
[EventCountry "ISR"]
[SourceTitle "playchess.com"]
[Source "ChessBase"]
[SourceQuality "1"]
[TimeControl "40/5400+30:1800+30"]

1. e4 {[%emt 0:01:39]} c5 {[%emt 0:00:00]} 2. Nf3 {[%emt 0:00:04]} d6 {[%emt 0:00:00]} 3. Bb5+ {[%emt 0:00:07]} Nd7 {[%emt 0:00:00]} 4. O-O {[%emt 0:00:07]} a6 {[%emt 0:00:00]} 5. Bd3 {[%emt 0:00:04]} Ngf6 {[%emt 0:00:00]} 6. c3 {[%emt 0:00:04]} e6 {[%emt 0:00:04]} 7. Bc2 {[%emt 0:05:28]} b5 {[%emt 0:00:15]} 8. d4 {[%emt 0:04:15]} Bb7 {[%emt 0:00:10]} 9. Qe2 {[%emt 0:00:33]} Be7 {[%emt 0:02:01]} 10. h3 {[%emt 0:00:10]} O-O {[%emt 0:00:29]} 11. Bf4 {[%emt 0:00:09]} Qc7 {[%emt 0:04:05]} 12. Rc1 {[%emt 0:00:48]} e5 {[%emt 0:04:07]} 13. Bg5 {[%emt 0:22:37]} h6 {[%emt 0:02:50]} 14. Bd2 {[%emt 0:12:24]} exd4 {[%emt 0:08:24]} 15. cxd4 {[%emt 0:00:06]} Rfe8 {[%emt 0:00:21]} 16. Bf4 {[%emt 0:15:53]} Qb6 {[%emt 0:03:52]} 17. Nbd2 {[%emt 0:07:42]} Bf8 {[%emt 0:06:05]} 18. dxc5 {[%emt 0:02:36]} Nxc5 {[%emt 0:00:41]} 19. Be3 {[%emt 0:00:02]} Qd8 {[%emt 0:03:55]} 20. Bxc5 {[%emt 0:06:18]} dxc5 {[%emt 0:00:12]} 21. e5 {[%emt 0:00:02]} Nd7 {[%emt 0:09:59]} 22. Re1 {[%emt 0:01:35]} c4 {[%emt 0:02:46]} 23. b3 {[%emt 0:03:32]} Bb4 {[%emt 0:05:29]} 24. bxc4 {[%emt 0:02:47]} Bxf3 {[%emt 0:07:29]} 25. Nxf3 {[%emt 0:02:45]} Bxe1 {[%emt 0:00:05]} 26. Rxe1 {[%emt 0:00:16]} bxc4 {[%emt 0:00:30]} 27. Qxc4 {[%emt 0:00:45]} Rc8 {[%emt 0:02:13]} 28. Qe4 {[%emt 0:04:51]} Nf8 {[%emt 0:01:09]} 29. Rd1 {[%emt 0:01:31]} Qc7 {[%emt 0:00:28]} 30. Bd3 {[%emt 0:02:31]} Qc6 {[%emt 0:03:51]} 31. Qe2 {[%emt 0:01:28]} Red8 {[%emt 0:02:28]} 32. Re1 {[%emt 0:00:36]} a5 {[%emt 0:00:33]} 33. Be4 {[%emt 0:01:03]} Qc3 {[%emt 0:01:51]} 34. Qb5 {[%emt 0:01:16]} Rb8 {[%emt 0:00:44]} 35. Qf1 {[%emt 0:00:45]} Rb2 {[%emt 0:01:34]} 36. Rc1 {[%emt 0:00:29]} Qa3 {[%emt 0:01:11]} 37. Bb1 {[%emt 0:00:01]} Ne6 {[%emt 0:00:20]} 38. Qc4 {[%emt 0:00:39]} Rdb8 {[%emt 0:01:14]} 39. Qe4 {[%emt 0:01:00]} g6 {[%emt 0:01:40]} 40. Re1 {[%emt 0:00:28]} Nc5 {[%emt 0:02:34]} 0-1

[Event "Netanya Open 2019"]
[Site "Netanya"]
[Date "2019.06.28"]
[Round "6.21"]
[White "Bilych, Olexiy"]
[Black "Mindlin, Alon"]
[Result "1-0"]
[ECO "C77"]
[WhiteElo "2203"]
[BlackElo "2454"]
[Annotator "ChessBase"]
[PlyCount "85"]
[EventDate "2019.06.23"]
[EventType "swiss"]
[EventCountry "ISR"]
[SourceTitle "playchess.com"]
[Source "ChessBase"]
[SourceQuality "1"]
[TimeControl "40/5400+30:1800+30"]

1. e4 {[%emt 0:00:00]} e5 {[%emt 0:00:00]} 2. Nf3 {[%emt 0:00:00]} Nc6 {[%emt 0:00:00]} 3. Bb5 {[%emt 0:00:00]} a6 {[%emt 0:00:00]} 4. Ba4 {[%emt 0:00:00]} Nf6 {[%emt 0:00:00]} 5. d3 {[%emt 0:00:00]} b5 {[%emt 0:00:21]} 6. Bb3 {[%emt 0:00:00]} Be7 {[%emt 0:00:05]} 7. O-O {[%emt 0:00:01]} d6 {[%emt 0:00:03]} 8. a3 {[%emt 0:02:04]} O-O {[%emt 0:00:09]} 9. Nc3 {[%emt 0:00:04]} Na5 {[%emt 0:00:13]} 10. Ba2 {[%emt 0:00:05]} Be6 {[%emt 0:00:03]} 11. b4 {[%emt 0:00:56]} Bxa2 {[%emt 0:06:08]} 12. Rxa2 {[%emt 0:00:42]} Nc6 {[%emt 0:01:15]} 13. Bg5 {[%emt 0:00:15]} Nd7 {[%emt 0:01:48]} 14. Bd2 {[%emt 0:00:17]} Bf6 {[%emt 0:04:46]} 15. Nd5 {[%emt 0:00:58]} Ne7 {[%emt 0:01:11]} 16. c4 {[%emt 0:02:08]} c6 {[%emt 0:02:14]} 17. Nxf6+ {[%emt 0:10:42]} Nxf6 {[%emt 0:00:26]} 18. Re1 {[%emt 0:00:13]} Ng6 {[%emt 0:03:00]} 19. Bc3 {[%emt 0:03:50]} Re8 {[%emt 0:03:59]} 20. Qa1 {[%emt 0:10:01]} Nf4 {[%emt 0:08:01]} 21. Rd2 {[%emt 0:05:22]} Qd7 {[%emt 0:00:46]} 22. Re3 {[%emt 0:08:32]} Ng4 {[%emt 0:06:24]} 23. Re1 {[%emt 0:02:14]} Re6 {[%emt 0:00:51]} 24. d4 {[%emt 0:07:55]} Rg6 {[%emt 0:01:49]} 25. Nh4 {[%emt 0:05:31]} Rh6 {[%emt 0:01:04]} 26. Nf5 {[%emt 0:00:19]} Rg6 {[%emt 0:12:24]} 27. f3 {[%emt 0:01:59]} Nh6 {[%emt 0:00:10]} 28. dxe5 {[%emt 0:03:16]} Nxf5 {[%emt 0:02:12]} 29. exf5 {[%emt 0:00:06]} Qxf5 {[%emt 0:00:06]} 30. exd6 {[%emt 0:07:24]} Nd3 {[%emt 0:02:07]} 31. d7 {[%emt 0:01:14]} Qxd7 {[%emt 0:01:24]} 32. c5 {[%emt 0:01:51]} Rg5 {[%emt 0:14:14]} 33. Re3 {[%emt 0:08:38]} Rd5 {[%emt 0:00:07]} 34. Bxg7 {[%emt 0:01:05]} Nxb4 {[%emt 0:01:31]} 35. Bh6 {[%emt 0:01:36]} f6 {[%emt 0:04:09]} 36. Re4 {[%emt 0:02:09]} f5 {[%emt 0:06:14]} 37. Rxd5 {[%emt 0:00:15]} Nxd5 {[%emt 0:00:06]} 38. Re6 {[%emt 0:00:03]} f4 {[%emt 0:03:59]} 39. Qe5 {[%emt 0:00:38]} Ne3 {[%emt 0:00:33]} 40. Qg5+ {[%emt 0:01:01]} Kh8 {[%emt 0:00:06]} 41. Qf6+ {[%emt 0:30:07]} Kg8 {[%emt 0:30:06]} 42. Rd6 {[%emt 0:00:26]} Qf7 {[%emt 0:00:17]} 43. Rd8+ {[%emt 0:00:04]} 1-0

[Event "Netanya Open 2019"]
[Site "Netanya"]
[Date "2019.06.28"]
[Round "6.22"]
[White "Abergel, Thal"]
[Black "Tzidkiya, Yeshaayahu"]
[Result "1-0"]
[ECO "A15"]
[WhiteElo "2450"]
[BlackElo "2265"]
[Annotator "ChessBase"]
[PlyCount "111"]
[EventDate "2019.06.23"]
[EventType "swiss"]
[EventCountry "ISR"]
[SourceTitle "playchess.com"]
[Source "ChessBase"]
[SourceQuality "1"]
[TimeControl "40/5400+30:1800+30"]

1. Nf3 {[%emt 0:00:00]} Nf6 {[%emt 0:00:00]} 2. c4 {[%emt 0:00:00]} g6 {[%emt 0:00:00]} 3. b3 {[%emt 0:00:00]} Bg7 {[%emt 0:00:00]} 4. Bb2 {[%emt 0:00:00]} O-O {[%emt 0:00:00]} 5. g3 {[%emt 0:00:07]} d6 {[%emt 0:00:04]} 6. Bg2 {[%emt 0:00:43]} e5 {[%emt 0:04:48]} 7. O-O {[%emt 0:04:35]} c6 {[%emt 0:05:55]} 8. Nc3 {[%emt 0:03:04]} Re8 {[%emt 0:00:55]} 9. Qc2 {[%emt 0:07:38]} Nbd7 {[%emt 0:01:59]} 10. d4 {[%emt 0:01:05]} a5 {[%emt 0:10:38]} 11. Rad1 {[%emt 0:04:13]} exd4 {[%emt 0:07:56]} 12. Nxd4 {[%emt 0:01:49]} Nc5 {[%emt 0:00:24]} 13. h3 {[%emt 0:02:50]} Qb6 {[%emt 0:00:25]} 14. e3 {[%emt 0:01:55]} h5 {[%emt 0:01:25]} 15. Ba3 {[%emt 0:02:40]} h4 {[%emt 0:18:14]} 16. g4 {[%emt 0:00:21]} Qc7 {[%emt 0:31:12]} 17. Ndb5 {[%emt 0:19:42]} cxb5 {[%emt 0:00:31]} 18. Nxb5 {[%emt 0:00:07]} Qe7 {[%emt 0:10:49]} 19. Nxd6 {[%emt 0:00:16]} Nce4 {[%emt 0:02:05]} 20. Nxe8 {[%emt 0:09:02]} Qxe8 {[%emt 0:00:20]} 21. Rd4 {[%emt 0:00:11]} Ng5 {[%emt 0:01:02]} 22. Rfd1 {[%emt 0:00:10]} Bd7 {[%emt 0:00:41]} 23. Qd3 {[%emt 0:02:25]} Bc6 {[%emt 0:01:06]} 24. Rd8 {[%emt 0:00:28]} Rxd8 {[%emt 0:00:17]} 25. Qxd8 {[%emt 0:00:02]} Nf3+ {[%emt 0:01:03]} 26. Kh1 {[%emt 0:01:03]} Qxd8 {[%emt 0:00:33]} 27. Rxd8+ {[%emt 0:00:05]} Kh7 {[%emt 0:00:01]} 28. Rc8 {[%emt 0:00:49]} Ne5 {[%emt 0:01:00]} 29. Bxc6 {[%emt 0:00:23]} Nxc6 {[%emt 0:00:28]} 30. Rc7 {[%emt 0:00:32]} Kg8 {[%emt 0:00:11]} 31. Rxb7 {[%emt 0:00:31]} Ne4 {[%emt 0:00:09]} 32. Kg2 {[%emt 0:00:06]} Ne5 {[%emt 0:00:55]} 33. Re7 {[%emt 0:03:29]} Nc3 {[%emt 0:00:45]} 34. Re8+ {[%emt 0:04:21]} Kh7 {[%emt 0:00:04]} 35. Bb2 {[%emt 0:00:55]} Nd3 {[%emt 0:00:15]} 36. Bxc3 {[%emt 0:00:14]} Bxc3 {[%emt 0:00:02]} 37. Rd8 {[%emt 0:00:40]} Nc5 {[%emt 0:00:49]} 38. Rb8 {[%emt 0:02:22]} Bb4 {[%emt 0:00:38]} 39. Rb5 {[%emt 0:00:21]} Kg7 {[%emt 0:00:55]} 40. a3 {[%emt 0:01:02]} Bxa3 {[%emt 0:00:19]} 41. Rxa5 {[%emt 0:30:07]} Bb4 {[%emt 0:30:03]} 42. Rb5 {[%emt 0:00:44]} Ba3 {[%emt 0:00:27]} 43. f4 {[%emt 0:01:55]} Kf6 {[%emt 0:00:39]} 44. Kf3 {[%emt 0:03:21]} Ke6 {[%emt 0:00:12]} 45. g5 {[%emt 0:01:34]} Nd3 {[%emt 0:01:03]} 46. Ke2 {[%emt 0:02:58]} Nc5 {[%emt 0:00:25]} 47. b4 {[%emt 0:04:03]} Nd7 {[%emt 0:00:00]} 48. Kd3 {[%emt 0:00:00]} Kd6 {[%emt 0:00:00]} 49. Kc3 {[%emt 0:00:00]} Kc6 {[%emt 0:00:00]} 50. Rd5 {[%emt 0:00:00]} Bc1 {[%emt 0:00:00]} 51. Rd3 {[%emt 0:00:00]} Nb6 {[%emt 0:00:00]} 52. Kc2 {[%emt 0:00:00]} Bxe3 {[%emt 0:00:00]} 53. Rxe3 {[%emt 0:00:00]} Nxc4 {[%emt 0:00:00]} 54. Re8 {[%emt 0:00:00]} Nd6 {[%emt 0:00:00]} 55. Rh8 {[%emt 0:00:00]} Kd5 {[%emt 0:00:00]} 56. Rd8 {[%emt 0:00:00]} 1-0

[Event "Netanya Open 2019"]
[Site "Netanya"]
[Date "2019.06.28"]
[Round "6.23"]
[White "Krayz, Alexander"]
[Black "Lukin, Elisha"]
[Result "1-0"]
[ECO "C01"]
[WhiteElo "2377"]
[BlackElo "2196"]
[Annotator "NA"]
[PlyCount "105"]
[EventDate "2019.06.23"]
[EventType "swiss"]
[EventCountry "ISR"]
[SourceTitle "playchess.com"]
[Source "ChessBase"]
[SourceQuality "1"]
[TimeControl "40/5400+30:1800+30"]

1. e4 {[%emt 0:00:00]} e6 {[%emt 0:02:13]} 2. d4 {[%emt 0:01:02]} d5 {[%emt 0:00:10]} 3. Nc3 {[%emt 0:00:05]} Bb4 {[%emt 0:00:17]} 4. exd5 {[%emt 0:00:05]} exd5 {[%emt 0:00:09]} 5. Bd3 {[%emt 0:00:07]} Nf6 {[%emt 0:00:25]} 6. h3 {[%emt 0:01:14]} Nbd7 {[%emt 0:00:58]} 7. Qf3 {[%emt 0:01:07]} Nf8 {[%emt 0:28:54]} 8. Bg5 {[%emt 0:05:55]} Be7 {[%emt 0:01:30]} 9. Bxf6 {[%emt 0:03:50]} Bxf6 {[%emt 0:01:03]} 10. Nxd5 {[%emt 0:00:09]} Bxd4 {[%emt 0:01:14]} 11. O-O-O {[%emt 0:00:37]} Ne6 {[%emt 0:07:56]} 12. Ne2 {[%emt 0:05:29]} Bc5 {[%emt 0:06:54]} 13. Ng3 {[%emt 0:10:34]} c6 {[%emt 0:07:32]} 14. Nc3 {[%emt 0:01:06]} Qg5+ {[%emt 0:03:47]} 15. Kb1 {[%emt 0:00:46]} Nd4 {[%emt 0:01:21]} 16. Rhe1+ {[%emt 0:13:10]} Be6 {[%emt 0:00:54]} 17. Qh5 {[%emt 0:00:06]} Qxh5 {[%emt 0:00:50]} 18. Nxh5 {[%emt 0:00:05]} O-O {[%emt 0:01:10]} 19. Nf4 {[%emt 0:01:26]} Bc8 {[%emt 0:16:31]} 20. Na4 {[%emt 0:05:04]} Bd6 {[%emt 0:00:41]} 21. Bxh7+ {[%emt 0:00:13]} Kxh7 {[%emt 0:00:01]} 22. Rxd4 {[%emt 0:00:10]} Bc7 {[%emt 0:01:39]} 23. g4 {[%emt 0:03:59]} b6 {[%emt 0:00:54]} 24. b4 {[%emt 0:07:48]} a5 {[%emt 0:00:54]} 25. Re7 {[%emt 0:01:24]} Rd8 {[%emt 0:03:12]} 26. Ne2 {[%emt 0:09:22]} Bd6 {[%emt 0:03:42]} 27. Re3 {[%emt 0:04:27]} c5 {[%emt 0:06:17]} 28. Rd1 {[%emt 0:03:30]} axb4 {[%emt 0:00:54]} 29. Nxb6 {[%emt 0:00:27]} Ra6 {[%emt 0:00:15]} 30. Nxc8 {[%emt 0:03:09]} Rxc8 {[%emt 0:02:43]} 31. c4 {[%emt 0:00:19]} Rca8 {[%emt 0:00:00]} 32. Rd2 {[%emt 0:00:29]} g5 {[%emt 0:00:00]} 33. Rf3 {[%emt 0:02:35]} Kg6 {[%emt 0:00:00]} 34. Rf5 {[%emt 0:00:26]} f6 {[%emt 0:00:40]} 35. Rfd5 {[%emt 0:01:23]} Re8 {[%emt 0:01:00]} 36. Nc1 {[%emt 0:01:12]} Bf4 {[%emt 0:00:20]} 37. Re2 {[%emt 0:00:10]} Rxe2 {[%emt 0:00:45]} 38. Nxe2 {[%emt 0:00:06]} Re6 {[%emt 0:00:07]} 39. Nxf4+ {[%emt 0:00:55]} gxf4 {[%emt 0:00:01]} 40. Rxc5 {[%emt 0:00:18]} Re1+ {[%emt 0:00:22]} 41. Kb2 {[%emt 0:30:06]} f3 {[%emt 0:06:47]} 42. Rf5 {[%emt 0:00:00]} Re2+ {[%emt 0:00:02]} 43. Kb3 {[%emt 0:00:00]} Rxf2 {[%emt 0:00:01]} 44. Kxb4 {[%emt 0:00:00]} Rf1 {[%emt 0:00:02]} 45. Kc5 {[%emt 0:00:00]} f2 {[%emt 0:00:28]} 46. a4 {[%emt 0:00:00]} Kf7 {[%emt 0:01:26]} 47. g5 {[%emt 0:00:00]} Ke6 {[%emt 0:00:02]} 48. Rxf6+ {[%emt 0:00:00]} Ke5 {[%emt 0:00:01]} 49. a5 {[%emt 0:00:00]} Ke4 {[%emt 0:02:29]} 50. a6 {[%emt 0:00:00]} Ke3 {[%emt 0:00:06]} 51. g6 {[%emt 0:00:00]} Rg1 {[%emt 0:00:46]} 52. a7 {[%emt 0:00:00]} Rg5+ {[%emt 0:00:36]} 53. Kb4 {[%emt 0:00:00]} 1-0

[Event "Netanya Open 2019"]
[Site "Netanya"]
[Date "2019.06.28"]
[Round "6.24"]
[White "Iliaguev, Nisim"]
[Black "Musyuk, Lior"]
[Result "1/2-1/2"]
[ECO "A29"]
[WhiteElo "2357"]
[BlackElo "2190"]
[Annotator "NA"]
[PlyCount "44"]
[EventDate "2019.06.23"]
[EventType "swiss"]
[EventCountry "ISR"]
[SourceTitle "playchess.com"]
[Source "ChessBase"]
[SourceQuality "1"]
[TimeControl "40/5400+30:1800+30"]

1. c4 {[%emt 0:00:00]} e5 {[%emt 0:00:00]} 2. g3 {[%emt 0:00:00]} Nf6 {[%emt 0:00:08]} 3. Bg2 {[%emt 0:00:00]} d5 {[%emt 0:00:39]} 4. cxd5 {[%emt 0:00:04]} Nxd5 {[%emt 0:00:07]} 5. Nc3 {[%emt 0:00:08]} Nb6 {[%emt 0:00:14]} 6. Nf3 {[%emt 0:00:26]} Nc6 {[%emt 0:00:30]} 7. O-O {[%emt 0:00:10]} Be7 {[%emt 0:00:19]} 8. d3 {[%emt 0:00:24]} O-O {[%emt 0:00:50]} 9. a3 {[%emt 0:01:09]} a5 {[%emt 0:03:10]} 10. Bd2 {[%emt 0:05:08]} Be6 {[%emt 0:02:33]} 11. Rc1 {[%emt 0:00:27]} f5 {[%emt 0:06:04]} 12. h4 {[%emt 0:03:05]} a4 {[%emt 0:02:24]} 13. Bg5 {[%emt 0:01:23]} h6 {[%emt 0:06:52]} 14. Bxe7 {[%emt 0:00:58]} Qxe7 {[%emt 0:00:26]} 15. Nd2 {[%emt 0:02:21]} Rfd8 {[%emt 0:02:28]} 16. Qe1 {[%emt 0:05:01]} Nd5 {[%emt 0:15:36]} 17. Nc4 {[%emt 0:02:22]} Qf7 {[%emt 0:04:15]} 18. Nxd5 {[%emt 0:12:44]} Bxd5 {[%emt 0:00:47]} 19. Bxd5 {[%emt 0:00:31]} Qxd5 {[%emt 0:01:08]} 20. Qc3 {[%emt 0:07:46]} Nd4 {[%emt 0:03:10]} 21. Rfe1 {[%emt 0:56:23]} f4 22. Nd2 {[%emt 0:00:30]} c6 {[%emt 0:49:20]} 1/2-1/2

[Event "Netanya Open 2019"]
[Site "Netanya"]
[Date "2019.06.28"]
[Round "6.25"]
[White "Parkhov, Yair"]
[Black "Lahav, Michal"]
[Result "1/2-1/2"]
[ECO "A34"]
[WhiteElo "2354"]
[BlackElo "2178"]
[Annotator "NA"]
[PlyCount "57"]
[EventDate "2019.06.23"]
[EventType "swiss"]
[EventCountry "ISR"]
[SourceTitle "playchess.com"]
[Source "ChessBase"]
[SourceQuality "1"]
[TimeControl "40/5400+30:1800+30"]

1. Nf3 {[%emt 0:02:22]} Nf6 {[%emt 0:00:00]} 2. c4 {[%emt 0:00:05]} c5 {[%emt 0:00:00]} 3. Nc3 {[%emt 0:00:06]} d5 {[%emt 0:00:00]} 4. cxd5 {[%emt 0:00:11]} Nxd5 {[%emt 0:00:02]} 5. e3 {[%emt 0:02:45]} Nc7 {[%emt 0:03:25]} 6. d4 {[%emt 0:08:42]} cxd4 {[%emt 0:06:08]} 7. exd4 {[%emt 0:01:33]} g6 {[%emt 0:01:36]} 8. Bc4 {[%emt 0:00:50]} Bg7 {[%emt 0:01:53]} 9. O-O {[%emt 0:00:10]} O-O {[%emt 0:00:09]} 10. Qe2 {[%emt 0:16:07]} Nc6 {[%emt 0:03:58]} 11. Rd1 {[%emt 0:02:17]} Na5 {[%emt 0:19:40]} 12. Bd3 {[%emt 0:02:04]} Be6 {[%emt 0:05:53]} 13. Bg5 {[%emt 0:03:24]} Re8 {[%emt 0:11:07]} 14. Rac1 {[%emt 0:12:46]} Nd5 {[%emt 0:00:54]} 15. Bb5 {[%emt 0:03:29]} Nc6 {[%emt 0:02:01]} 16. Ne5 {[%emt 0:11:58]} Rc8 {[%emt 0:00:57]} 17. Na4 {[%emt 0:02:49]} h6 {[%emt 0:06:49]} 18. Bxc6 {[%emt 0:00:14]} bxc6 {[%emt 0:00:04]} 19. Bd2 {[%emt 0:00:11]} Nb6 {[%emt 0:11:14]} 20. Nxb6 {[%emt 0:06:29]} axb6 {[%emt 0:03:21]} 21. Nxg6 {[%emt 0:02:36]} Qxd4 {[%emt 0:01:53]} 22. Nf4 {[%emt 0:01:51]} Bxa2 {[%emt 0:00:31]} 23. Nh5 {[%emt 0:01:26]} Qe5 {[%emt 0:01:03]} 24. Qg4 {[%emt 0:03:41]} Be6 {[%emt 0:00:10]} 25. Qh4 {[%emt 0:00:06]} Qxb2 {[%emt 0:06:40]} 26. Nxg7 {[%emt 0:04:18]} Qxg7 {[%emt 0:00:02]} 27. Rc3 {[%emt 0:00:09]} Kh7 {[%emt 0:01:32]} 28. Rg3 {[%emt 0:05:59]} Qf6 {[%emt 0:00:08]} 29. Qe4+ {[%emt 0:00:28]} 1/2-1/2